bitfinex/quotes_BTCUSD_20220115
["timestamp","ask_amount","ask_price","bid_price","bid_amount"]
[1642209162428,0.205,43122.0,43121.0,1.77793832]
[1642209162927,0.205,43122.0,43121.0,2.12793832]
[1642209163130,0.69782143,43137.0,43131.0,0.4171916]
[1642209163131,2.07023917,43135.0,43131.0,0.4171916]
[1642209163330,1.51563917,43135.0,43132.0,0.34822233]
[1642209163536,1.51563917,43135.0,43133.0,0.40020603]
[1642209163537,0.59473917,43135.0,43133.0,0.40020603]
[1642209163729,0.003,43137.0,43134.0,0.28262835]
[1642209164328,0.003,43137.0,43133.0,0.27222921]
[1642209164528,0.003,43137.0,43132.0,0.115901]
[1642209164931,0.003,43137.0,43133.0,0.05795379]
[1642209165128,0.003,43137.0,43133.0,0.3302071]
[1642209165374,0.003,43137.0,43132.0,0.39210073]
[1642209165774,0.003,43137.0,43132.0,0.27619973]
[1642209166373,0.003,43137.0,43131.0,0.36735192]
[1642209166574,0.003,43137.0,43131.0,0.36635192]
[1642209168175,0.003,43137.0,43131.0,0.32015192]
[1642209188471,0.32610135,43140.0,43131.0,0.31892671]
[1642209191633,0.38406835,43140.0,43131.0,0.31892671]
[1642209191833,0.32610135,43140.0,43131.0,0.31892671]
[1642209194436,0.31875217,43133.0,43127.0,0.87092209]
[1642209194637,0.31875217,43133.0,43128.0,0.375983]
[1642209195504,0.31875217,43133.0,43128.0,0.71168176]
[1642209195704,0.0462,43135.0,43128.0,0.71168176]
[1642209200329,0.0412,43135.0,43128.0,0.71168176]
[1642209200727,0.3250516,43136.0,43128.0,0.71168176]
[1642209200928,0.3250516,43136.0,43128.0,0.33569876]
[1642209207363,0.56917576,43136.0,43128.0,0.33569876]
[1642209208064,0.61917576,43136.0,43128.0,0.33569876]
[1642209208262,0.56917576,43136.0,43128.0,0.33569876]
[1642209209067,0.3250516,43136.0,43128.0,0.33569876]
[1642209211589,0.3250516,43136.0,43128.0,0.66651672]
[1642209211786,0.31923896,43139.0,43128.0,0.45162076]
[1642209212886,0.30254153,43138.0,43128.0,0.45162076]
[1642209213087,0.30254153,43138.0,43128.0,0.39365976]
[1642209214332,0.30254153,43138.0,43128.0,0.45162176]
[1642209216135,0.30254153,43138.0,43128.0,0.39365976]
[1642209217436,0.30254153,43138.0,43129.0,0.057957]
[1642209217636,0.30254153,43138.0,43131.0,0.057957]
[1642209218483,0.6930755,43137.0,43131.0,0.057957]
[1642209219486,0.6930755,43137.0,43132.0,0.057957]
[1642209219686,0.7220755,43137.0,43132.0,0.057957]
[1642209220888,0.6930755,43137.0,43132.0,0.057957]
[1642209221386,0.6930755,43137.0,43135.0,0.27186046]
[1642209221629,0.7220755,43137.0,43135.0,0.27186046]
[1642209222734,0.6930755,43137.0,43135.0,0.27186046]
[1642209223631,0.7280755,43137.0,43135.0,0.27186046]
[1642209224435,0.035,43137.0,43135.0,0.27186046]
[1642209224632,0.035,43137.0,43129.0,0.05795804]
[1642209224633,0.035,43137.0,43127.0,1.30126243]
[1642209224831,0.6930755,43138.0,43127.0,1.30126243]
[1642209225475,0.6930755,43138.0,43128.0,0.057961]
[1642209225675,0.7030755,43138.0,43128.0,0.057961]
[1642209225877,0.7030755,43138.0,43132.0,0.29758424]
[1642209226979,0.6930755,43138.0,43132.0,0.29758424]
[1642209227577,0.7240755,43138.0,43132.0,0.29758424]
[1642209229033,0.6930755,43138.0,43132.0,0.29758424]
[1642209229637,0.7220755,43138.0,43132.0,0.29758424]
[1642209230236,0.029,43138.0,43132.0,0.29758424]
[1642209230836,0.6930755,43139.0,43132.0,0.29758424]
[1642209231737,0.7180755,43139.0,43132.0,0.29758424]
[1642209232878,0.6930755,43139.0,43132.0,0.29758424]
[1642209233779,0.7180755,43139.0,43132.0,0.29758424]
[1642209234683,0.025,43139.0,43132.0,0.29758424]
[1642209234884,0.27601306,43140.0,43132.0,0.29758424]
[1642209238133,0.27601306,43140.0,43127.0,0.31362358]
[1642209238336,0.27601306,43140.0,43128.0,0.26734478]
[1642209238535,0.27601306,43140.0,43128.0,0.38326878]
[1642209238836,0.00602303,43140.0,43128.0,0.32530678]
[1642209239040,0.001,43141.0,43132.0,0.00128086]
[1642209239236,0.001,43141.0,43132.0,0.04748086]
[1642209239435,0.001,43141.0,43133.0,0.29446174]
[1642209239636,0.001,43141.0,43132.0,0.04748086]
[1642209239637,0.001,43141.0,43132.0,0.14748086]
[1642209239835,0.001,43141.0,43140.0,0.29290556]
[1642209240679,0.001,43141.0,43134.0,0.115892]
[1642209240880,0.001,43141.0,43136.0,0.59557227]
[1642209241982,0.001,43141.0,43135.0,0.61321806]
[1642209242179,0.001,43141.0,43135.0,0.55526506]
[1642209245927,0.001,43141.0,43135.0,0.27922095]
[1642209246129,0.001,43141.0,43133.0,0.59557227]
[1642209246326,0.001,43141.0,43134.0,0.27186382]
[1642209246528,0.001,43141.0,43133.0,0.59557227]
[1642209246926,0.3256288,43136.0,43133.0,0.59557227]
[1642209247127,0.3256288,43136.0,43134.0,0.375983]
[1642209248488,0.31841849,43135.0,43134.0,0.375983]
[1642209251090,0.31841849,43135.0,43132.0,0.00128086]
[1642209251286,0.3256288,43136.0,43133.0,0.375983]
[1642209251731,0.3366288,43136.0,43133.0,0.375983]
[1642209252932,0.00602307,43137.0,43133.0,0.375983]
[1642209257581,0.00602307,43137.0,43133.0,0.433939]
[1642209259834,0.00602307,43137.0,43134.0,0.27190039]
[1642209260033,0.00602307,43137.0,43135.0,0.375983]
[1642209263189,0.00602307,43137.0,43131.0,0.27941227]
[1642209263388,0.00602307,43137.0,43132.0,0.375983]
[1642209263592,0.33405452,43136.0,43130.0,0.25595498]
[1642209263790,0.33405452,43136.0,43131.0,0.375983]
[1642209264190,0.33405452,43136.0,43130.0,0.28195498]
[1642209264390,0.33405452,43136.0,43131.0,0.375983]
[1642209265193,0.33405452,43136.0,43130.0,0.25595498]
[1642209265394,0.33405452,43136.0,43128.0,0.173872]
[1642209265594,0.79039772,43136.0,43129.0,0.375983]
[1642209267030,0.33405452,43136.0,43129.0,0.375983]
[1642209268232,0.33405452,43136.0,43129.0,0.97155527]
[1642209269832,0.33405452,43136.0,43129.0,1.03755527]
[1642209270484,0.33405452,43136.0,43131.0,0.057959]
[1642209270684,0.33405452,43136.0,43132.0,0.375983]
[1642209272583,0.00602307,43137.0,43132.0,0.375983]
[1642209273684,0.27764425,43137.0,43132.0,0.375983]
[1642209273885,0.27764425,43137.0,43131.0,0.137918]
[1642209274532,0.27764425,43137.0,43131.0,0.079959]
[1642209275131,0.27764425,43137.0,43131.0,0.057959]
[1642209276533,0.27764425,43137.0,43131.0,0.65353127]
[1642209276736,0.27264425,43137.0,43132.0,0.375983]
[1642209277335,0.00102307,43137.0,43132.0,0.375983]
[1642209278179,0.00102307,43137.0,43131.0,0.61757227]
[1642209278377,0.29568035,43136.0,43131.0,0.022]
[1642209279179,0.29568035,43136.0,43129.0,0.59557227]
[1642209279381,0.29568035,43136.0,43130.0,0.375983]
[1642209280681,0.29068035,43136.0,43131.0,0.057958]
[1642209280882,0.29068035,43136.0,43132.0,0.375983]
[1642209281084,0.00102307,43137.0,43132.0,0.375983]
[1642209283347,0.00102307,43137.0,43130.0,0.59557227]
[1642209283547,0.00102307,43137.0,43131.0,0.375983]
[1642209285147,0.00102307,43137.0,43131.0,0.97155527]
[1642209285984,0.00102307,43137.0,43131.0,0.99355527]
[1642209286384,0.00102307,43137.0,43131.0,0.397983]
[1642209287086,0.00102307,43137.0,43131.0,0.375983]
[1642209287786,0.00102307,43137.0,43131.0,0.97155527]
[1642209289040,0.00102307,43137.0,43131.0,0.59557227]
[1642209289839,0.00102307,43137.0,43131.0,0.63757227]
[1642209290043,0.00102307,43137.0,43131.0,0.042]
[1642209291042,0.00102307,43137.0,43130.0,0.59557227]
[1642209291642,0.00102307,43137.0,43131.0,0.59557227]
[1642209291843,0.00102307,43137.0,43132.0,0.27284624]
[1642209292044,0.33411881,43139.0,43132.0,0.27284624]
[1642209292345,0.33411881,43139.0,43132.0,0.86841851]
[1642209292785,0.33411881,43139.0,43132.0,0.59557227]
[1642209293786,0.34186872,43135.0,43132.0,0.59557227]
[1642209293988,0.34186872,43135.0,43133.0,0.375983]
[1642209294996,0.00602394,43135.0,43133.0,0.375983]
[1642209296293,0.00602394,43135.0,43134.0,0.26836826]
[1642209296536,0.00602394,43135.0,43134.0,0.64435126]
[1642209297338,0.00602394,43135.0,43134.0,0.375983]
[1642209307890,0.00602394,43135.0,43131.0,0.62257227]
[1642209308088,0.00602394,43135.0,43132.0,0.375983]
[1642209309391,0.08917047,43134.0,43132.0,0.375983]
[1642209309590,0.17834094,43134.0,43132.0,0.375983]
[1642209314533,0.08917047,43134.0,43132.0,0.375983]
[1642209314735,0.08917047,43133.0,43132.0,0.375983]
[1642209314932,0.17834094,43133.0,43132.0,0.375983]
[1642209317392,0.17334094,43133.0,43132.0,0.375983]
[1642209319858,0.08917047,43133.0,43132.0,0.375983]
[1642209320059,0.17334094,43133.0,43132.0,0.375983]
[1642209321261,0.17334094,43133.0,43129.0,0.59557227]
[1642209321461,0.17334094,43133.0,43130.0,0.375983]
[1642209321660,0.08417047,43133.0,43130.0,0.375983]
[1642209321860,0.08917047,43132.0,43130.0,0.375983]
[1642209323084,0.41479914,43132.0,43130.0,0.375983]
[1642209324086,0.42679914,43132.0,43130.0,0.375983]
[1642209325186,0.10117047,43132.0,43130.0,0.375983]
[1642209325386,0.08417047,43131.0,43130.0,0.375983]
[1642209326387,0.08417047,43131.0,43129.0,0.68957227]
[1642209327234,0.08917047,43130.0,43129.0,0.68957227]
[1642209327435,0.24349467,43129.0,43127.0,0.59557227]
[1642209327834,0.24349467,43129.0,43128.0,0.375983]
[1642209328437,0.08917047,43130.0,43128.0,0.375983]
[1642209328642,0.08917047,43130.0,43127.0,0.073]
[1642209328837,0.08917047,43130.0,43127.0,0.66857227]
[1642209329637,0.06417047,43130.0,43127.0,0.59557227]
[1642209330139,0.06417047,43130.0,43127.0,0.66857227]
[1642209330812,0.08417047,43128.0,43127.0,0.66857227]
[1642209331007,0.08417047,43128.0,43127.0,1.04455527]
[1642209331411,0.08417047,43128.0,43127.0,0.64540906]
[1642209331808,0.08417047,43128.0,43127.0,0.64661965]
[1642209332108,0.08417047,43128.0,43127.0,1.31619192]
[1642209332708,0.14834094,43128.0,43127.0,1.31619192]
[1642209333110,0.14834094,43128.0,43127.0,1.71283109]
[1642209333309,0.14834094,43128.0,43127.0,1.63883109]
[1642209333509,0.14834094,43128.0,43127.0,1.36940503]
[1642209334137,0.14834094,43128.0,43127.0,1.40840503]
[1642209335340,0.14834094,43128.0,43127.0,1.36819444]
[1642209336140,0.14834094,43128.0,43127.0,1.41919444]
[1642209337343,0.14834094,43128.0,43127.0,1.36819444]
[1642209338192,0.14834094,43128.0,43127.0,1.56919444]
[1642209339391,0.14834094,43128.0,43127.0,1.36319444]
[1642209340191,0.14834094,43128.0,43127.0,1.48319444]
[1642209341541,0.14834094,43128.0,43127.0,1.36319444]
[1642209341939,0.14834094,43128.0,43127.0,1.51319444]
[1642209342139,0.14834094,43128.0,43127.0,1.62819444]
[1642209343439,0.14834094,43128.0,43127.0,1.36319444]
[1642209344143,0.14834094,43128.0,43127.0,1.50319444]
[1642209344743,0.14834094,43128.0,43127.0,2.19777736]
[1642209345390,0.14834094,43128.0,43127.0,2.05777736]
[1642209346184,0.14834094,43128.0,43127.0,2.17777736]
[1642209346986,0.14772094,43128.0,43127.0,2.17777736]
[1642209347185,0.06417047,43128.0,43127.0,2.17777736]
[1642209347385,0.14772094,43128.0,43127.0,2.05777736]
[1642209347986,0.14772094,43128.0,43127.0,1.06556592]
[1642209348186,0.14772094,43128.0,43127.0,1.08736291]
[1642209349438,0.14772094,43128.0,43127.0,0.96636291]
[1642209350237,0.14772094,43128.0,43127.0,1.03536291]
[1642209351538,0.14772094,43128.0,43127.0,0.96636291]
[1642209352238,0.14772094,43128.0,43127.0,1.02136291]
[1642209353417,0.14772094,43128.0,43127.0,0.96636291]
[1642209354321,2.09772094,43128.0,43127.0,0.44651623]
[1642209354521,2.09772094,43128.0,43125.0,0.69458292]
[1642209354522,1.1,43127.0,43125.0,0.69458292]
[1642209354724,2.77502226,43126.0,43125.0,0.211402]
[1642209355119,3.00857273,43126.0,43125.0,0.211402]
[1642209355318,0.00125962,43120.0,43118.0,0.79437793]
[1642209355521,0.02495962,43120.0,43112.0,0.79437793]
[1642209355718,0.28046101,43117.0,43112.0,0.79437793]
[1642209355919,0.36128101,43117.0,43113.0,0.328632]
[1642209356536,0.36128101,43117.0,43112.0,0.79437793]
[1642209356735,0.29614493,43116.0,43112.0,0.79437793]
[1642209356935,0.29456013,43116.0,43113.0,0.51884599]
[1642209357242,0.04744257,43115.0,43113.0,0.51884599]
[1642209357437,2.19696128,43114.0,43113.0,0.51884599]
[1642209357637,2.322273,43114.0,43113.0,0.51884599]
[1642209358036,2.322273,43114.0,43107.0,0.79437793]
[1642209358238,2.322273,43114.0,43101.0,1.04320817]
[1642209358239,0.00125396,43110.0,43101.0,1.04320817]
[1642209358436,0.0462,43109.0,43101.0,1.04320817]
[1642209358637,0.0462,43109.0,43102.0,0.058004]
[1642209359437,0.60082075,43108.0,43102.0,0.058004]
[1642209359637,0.0462,43107.0,43103.0,0.328729]
[1642209360038,0.31274621,43107.0,43103.0,0.328729]
[1642209360287,0.0462,43107.0,43103.0,0.328729]
[1642209360487,0.14772094,43105.0,43103.0,0.328729]
[1642209360689,0.19392094,43105.0,43103.0,0.328729]
[1642209360888,0.14772094,43105.0,43104.0,0.12565862]
[1642209361088,0.14772094,43105.0,43104.0,0.45438062]
[1642209361488,0.14772094,43105.0,43104.0,0.328722]
[1642209362390,0.14772094,43105.0,43104.0,0.45438062]
[1642209362791,0.42169138,43105.0,43104.0,0.12565862]
[1642209363189,0.42169138,43105.0,43102.0,0.12565862]
[1642209363390,0.51781138,43105.0,43102.0,0.12565862]
[1642209364048,0.24384094,43105.0,43102.0,0.18366062]
[1642209364249,0.25184094,43105.0,43104.0,0.5956764]
[1642209364449,0.15572094,43105.0,43104.0,0.9243984]
[1642209364649,0.15572094,43105.0,43104.0,0.5956764]
[1642209365249,0.15572094,43105.0,43102.0,0.6949558]
[1642209365250,0.15572094,43105.0,43102.0,0.7529598]
[1642209365550,0.28283283,43110.0,43104.0,0.82061442]
[1642209365950,0.06417047,43106.0,43104.0,0.82061442]
[1642209366751,0.23,43105.0,43104.0,0.82061442]
[1642209366950,0.23,43105.0,43102.0,0.058004]
[1642209367556,0.23,43105.0,43101.0,0.34228262]
[1642209368203,0.26521879,43104.0,43098.0,0.05801]
[1642209369002,0.28696197,43100.0,43098.0,0.05801]
[1642209369203,0.28696197,43100.0,43099.0,0.328758]
[1642209370207,0.28321879,43104.0,43099.0,0.328758]
[1642209370403,0.28321879,43104.0,43098.0,0.05801]
[1642209371003,0.08355047,43101.0,43098.0,0.05801]
[1642209371205,0.14772094,43101.0,43100.0,0.27727193]
[1642209371403,0.14772094,43101.0,43100.0,0.60603093]
[1642209372166,0.14772094,43101.0,43100.0,0.328759]
[1642209377499,0.14772094,43101.0,43100.0,1.36317213]
[1642209377902,0.14772094,43101.0,43100.0,1.47915513]
[1642209378300,0.23,43105.0,43101.0,0.7]
[1642209378502,0.23,43105.0,43103.0,0.0579875]
[1642209378701,0.23,43105.0,43104.0,0.328723]
[1642209380043,0.23,43105.0,43102.0,0.057988]
[1642209380245,0.23,43105.0,43099.0,0.00125399]
[1642209380447,0.23,43105.0,43100.0,0.328754]
[1642209381245,0.23,43105.0,43102.0,0.6949558]
[1642209382647,0.23,43105.0,43103.0,0.59566186]
[1642209382890,0.57490124,43104.0,43103.0,0.59566186]
[1642209383093,0.31474958,43104.0,43103.0,0.59566186]
[1642209383892,0.31474958,43104.0,43102.0,0.59566186]
[1642209384090,0.00602795,43104.0,43102.0,0.59566186]
[1642209385291,0.00602795,43104.0,43100.0,0.6949558]
[1642209385492,0.00602795,43104.0,43102.0,0.6949558]
[1642209385892,0.00602795,43104.0,43102.0,0.6899558]
[1642209386945,0.00602795,43104.0,43103.0,0.328732]
[1642209389948,0.00602795,43104.0,43102.0,0.6899558]
[1642209390590,0.00602795,43104.0,43103.0,0.59567798]
[1642209392492,0.00602795,43104.0,43102.0,0.27804193]
[1642209393091,0.00602795,43104.0,43103.0,0.328731]
[1642209394360,0.26911642,43104.0,43102.0,0.69494975]
[1642209394757,0.00602795,43104.0,43102.0,0.69494975]
[1642209395155,0.26690722,43104.0,43102.0,0.69494975]
[1642209395355,0.00602795,43104.0,43102.0,0.69494975]
[1642209395556,0.26531094,43104.0,43102.0,0.69494975]
[1642209395957,0.26531094,43104.0,43103.0,0.59569412]
[1642209398596,0.26531094,43104.0,43102.0,0.59569412]
[1642209399396,0.26531094,43104.0,43101.0,0.59569412]
[1642209400198,0.26531094,43104.0,43102.0,0.59569412]
[1642209401946,0.26531094,43104.0,43100.0,0.59569412]
[1642209402345,0.26949562,43101.0,43100.0,0.59569412]
[1642209402748,0.26949562,43101.0,43099.0,0.69494975]
[1642209403347,0.25888416,43100.0,43099.0,0.69494975]
[1642209403549,0.26480339,43100.0,43099.0,0.69494975]
[1642209403950,0.26480339,43100.0,43098.0,0.69494975]
[1642209406502,0.26480339,43100.0,43097.0,0.99492694]
[1642209407102,0.26480339,43100.0,43098.0,0.99492694]
[1642209407302,0.28549562,43101.0,43098.0,0.99492694]
[1642209407504,0.016,43101.0,43099.0,0.05221]
[1642209407703,0.0462,43102.0,43099.0,0.05221]
[1642209413395,0.0462,43102.0,43098.0,0.69494975]
[1642209413594,0.0462,43102.0,43097.0,0.69494975]
[1642209413793,0.31672381,43098.0,43097.0,0.69494975]
[1642209414995,0.57788743,43098.0,43096.0,0.94457743]
[1642209415196,0.57652634,43098.0,43096.0,0.94457743]
[1642209415394,0.2613833,43097.0,43096.0,0.94457743]
[1642209416396,0.68128835,43098.0,43095.0,0.79936775]
[1642209416397,0.69728835,43098.0,43095.0,0.79936775]
[1642209417658,0.68128835,43098.0,43095.0,0.79936775]
[1642209418057,0.36456454,43098.0,43096.0,0.92225753]
[1642209418359,0.016,43098.0,43096.0,0.92225753]
[1642209418756,0.016,43098.0,43097.0,0.69494975]
[1642209419357,0.016,43098.0,43096.0,0.92225753]
[1642209419658,0.32085334,43100.0,43096.0,0.92225753]
[1642209419860,0.64429937,43100.0,43096.0,0.92225753]
[1642209420499,0.65929937,43100.0,43096.0,0.92225753]
[1642209421002,0.65929937,43100.0,43098.0,0.59574537]
[1642209421200,0.33844603,43100.0,43098.0,0.59574537]
[1642209421599,0.32344603,43100.0,43098.0,0.59574537]
[1642209422101,0.26360995,43099.0,43098.0,0.59574537]
[1642209422299,0.61596241,43100.0,43099.0,0.59574537]
[1642209422505,0.90205605,43100.0,43099.0,0.59574537]
[1642209422700,0.90205605,43100.0,43098.0,0.59574537]
[1642209422899,0.376073,43099.0,43098.0,0.59574537]
[1642209423400,0.61596241,43100.0,43098.0,0.59574537]
[1642209423599,0.61596241,43100.0,43098.0,0.64795637]
[1642209424447,0.64396241,43100.0,43098.0,0.64795637]
[1642209424647,0.35144603,43100.0,43098.0,0.64795637]
[1642209424849,0.028,43100.0,43099.0,0.59574537]
[1642209425651,0.05602795,43104.0,43099.0,0.59574537]
[1642209425951,0.00602795,43104.0,43100.0,0.052208]
[1642209426352,0.00602795,43104.0,43099.0,0.59574537]
[1642209426752,0.26369989,43102.0,43099.0,0.59574537]
[1642209428195,0.00602795,43104.0,43099.0,0.59574537]
[1642209429094,0.06404395,43104.0,43099.0,0.59574537]
[1642209429292,0.06528238,43104.0,43099.0,0.59574537]
[1642209429494,0.3376064,43103.0,43097.0,0.59574537]
[1642209429694,0.65609503,43102.0,43097.0,0.59574537]
[1642209430094,0.376073,43102.0,43097.0,0.59574537]
[1642209430492,0.409073,43102.0,43097.0,0.59574537]
[1642209430694,0.409073,43102.0,43098.0,0.052213]
[1642209431094,0.409073,43102.0,43098.0,0.64795837]
[1642209431293,0.033,43102.0,43098.0,0.64795837]
[1642209431748,0.05,43103.0,43098.0,0.64795837]
[1642209432148,0.41647701,43104.0,43098.0,0.64795837]
[1642209432348,0.75248236,43104.0,43098.0,0.64795837]
[1642209432547,0.78748236,43104.0,43098.0,0.64795837]
[1642209432750,0.68748236,43104.0,43098.0,0.64795837]
[1642209432947,0.63748236,43104.0,43098.0,0.64795837]
[1642209433349,0.63748236,43104.0,43100.0,0.05221]
[1642209433548,0.63748236,43104.0,43099.0,0.59574537]
[1642209433749,0.60248236,43104.0,43099.0,0.59574537]
[1642209434048,0.60248236,43104.0,43098.0,0.59574537]
[1642209434249,0.34327173,43104.0,43098.0,0.59574537]
[1642209434448,0.37427173,43104.0,43098.0,0.59574537]
[1642209434850,0.37427173,43104.0,43099.0,0.59574537]
[1642209435496,0.3730333,43104.0,43099.0,0.052213]
[1642209435700,0.00602795,43104.0,43099.0,0.052213]
[1642209436095,0.00602795,43104.0,43099.0,0.64795837]
[1642209437197,0.00602795,43104.0,43100.0,0.59574537]
[1642209437598,0.00602795,43104.0,43101.0,0.052207]
[1642209438801,0.34059037,43104.0,43101.0,0.052207]
[1642209439050,0.34059037,43104.0,43100.0,0.104412]
[1642209440649,0.34059037,43104.0,43099.0,0.59574537]
[1642209441850,0.34059037,43104.0,43100.0,0.052211]
[1642209442250,0.00602795,43104.0,43100.0,0.052211]
[1642209446312,0.00602795,43104.0,43098.0,0.59574537]
[1642209446751,0.00602795,43104.0,43098.0,0.59074537]
[1642209447147,0.00602795,43104.0,43097.0,0.59074537]
[1642209447546,2.1255199,43104.0,43097.0,0.59074537]
[1642209447747,0.43409,43103.0,43097.0,0.59074537]
[1642209447948,0.108017,43103.0,43097.0,0.59074537]
[1642209448551,0.108017,43103.0,43096.0,0.052215]
[1642209448949,0.05,43103.0,43096.0,0.052215]
[1642209449348,0.28839626,43104.0,43096.0,0.052215]
[1642209449550,0.38839626,43104.0,43096.0,0.052215]
[1642209449748,0.35439626,43104.0,43096.0,0.052215]
[1642209449948,0.20439626,43104.0,43096.0,0.052215]
[1642209451004,0.19439626,43104.0,43096.0,0.052215]
[1642209451904,0.73933711,43105.0,43096.0,0.052215]
[1642209452101,0.79536538,43105.0,43096.0,0.042215]
[1642209452299,0.76136538,43105.0,43096.0,0.042215]
[1642209452500,0.79636538,43105.0,43096.0,0.042215]
[1642209453605,0.79636538,43105.0,43096.0,0.31065253]
[1642209453801,0.76136538,43105.0,43096.0,0.31065253]
[1642209454054,0.38602827,43105.0,43096.0,1.00925624]
[1642209454448,0.28602827,43105.0,43096.0,0.73716475]
[1642209454649,0.38602827,43105.0,43096.0,0.91243738]
[1642209455148,0.38602827,43105.0,43096.0,1.18084973]
[1642209455149,0.33683325,43104.0,43096.0,1.18084973]
[1642209455348,0.33683325,43104.0,43097.0,0.59575215]
[1642209455549,0.33683325,43104.0,43100.0,0.052212]
[1642209455948,0.54639517,43104.0,43097.0,0.59575215]
[1642209456153,0.54639517,43104.0,43096.0,0.59575215]
[1642209456550,0.57539517,43104.0,43096.0,0.59575215]
[1642209456750,0.376073,43103.0,43096.0,0.59575215]
[1642209457153,0.371073,43103.0,43096.0,0.59575215]
[1642209457352,0.371073,43103.0,43097.0,0.59575215]
[1642209457551,0.371073,43103.0,43098.0,0.052214]
[1642209458496,0.36483325,43104.0,43098.0,0.052214]
[1642209459796,0.33683325,43104.0,43098.0,0.052214]
[1642209459997,0.33683325,43104.0,43098.0,0.64796615]
[1642209460599,0.41502827,43105.0,43098.0,0.64796615]
[1642209460799,0.41002827,43105.0,43098.0,0.64796615]
[1642209462249,0.41002827,43105.0,43099.0,0.59575215]
[1642209462448,0.38102827,43105.0,43101.0,0.052205]
[1642209462649,0.31202827,43105.0,43101.0,0.052205]
[1642209462852,0.41202827,43105.0,43101.0,0.052205]
[1642209463954,0.38102827,43105.0,43101.0,0.052205]
[1642209464151,0.28102827,43105.0,43100.0,0.59575215]
[1642209464351,0.37602827,43105.0,43100.0,0.59575215]
[1642209464552,2.05886147,43105.0,43099.0,0.052212]
[1642209464751,0.376122,43104.0,43099.0,0.052212]
[1642209466001,0.58958577,43104.0,43099.0,0.052212]
[1642209466603,0.61858577,43104.0,43099.0,0.052212]
[1642209467003,0.405122,43104.0,43099.0,0.052212]
[1642209467805,0.376122,43104.0,43099.0,0.052212]
[1642209468207,0.37602827,43105.0,43099.0,0.052212]
[1642209468407,0.58706759,43105.0,43099.0,0.052212]
[1642209468607,0.376122,43104.0,43099.0,0.052212]
[1642209470250,0.37602827,43105.0,43099.0,0.052212]
[1642209470449,0.27602827,43105.0,43099.0,0.052212]
[1642209470649,0.376122,43104.0,43099.0,0.052212]
[1642209470851,0.40502827,43105.0,43099.0,0.052212]
[1642209471853,0.37602827,43105.0,43099.0,0.052212]
[1642209472051,0.27602827,43105.0,43099.0,0.052212]
[1642209475000,0.376122,43104.0,43099.0,0.052212]
[1642209475403,0.27602827,43105.0,43099.0,0.052212]
[1642209477052,0.27102827,43105.0,43099.0,0.052212]
[1642209477754,0.27102827,43105.0,43099.0,0.64796415]
[1642209478153,0.21667148,43104.0,43099.0,0.64796415]
[1642209478353,0.21667148,43104.0,43099.0,0.052212]
[1642209478553,0.26287148,43104.0,43099.0,0.052212]
[1642209479154,0.376122,43103.0,43099.0,0.052212]
[1642209482402,0.534139,43103.0,43097.0,0.59575215]
[1642209482602,0.411471,43102.0,43097.0,0.59575215]
[1642209482800,0.00128924,43099.0,43097.0,0.59575215]
[1642209483000,1.3462,43098.0,43097.0,0.59575215]
[1642209483202,0.05,43097.0,43094.0,0.59575215]
[1642209483501,2.95752439,43095.0,43094.0,0.59575215]
[1642209483702,3.10116439,43095.0,43094.0,0.59575215]
[1642209483901,3.5077158,43095.0,43094.0,0.59575215]
[1642209484151,3.5077158,43095.0,43094.0,5.215e-05]
[1642209484152,4.59632448,43095.0,43094.0,5.215e-05]
[1642209484754,0.1,43094.0,43085.0,0.79437793]
[1642209484949,0.00731172,43087.0,43085.0,0.79437793]
[1642209485150,0.104245,43086.0,43080.0,0.5721]
[1642209485349,0.104245,43086.0,43079.0,0.79437793]
[1642209485350,0.30165848,43081.0,43079.0,0.79437793]
[1642209485550,0.0462,43080.0,43079.0,0.79437793]
[1642209486552,0.0462,43080.0,43079.0,0.1632398]
[1642209488013,0.0462,43080.0,43079.0,0.4971788]
[1642209488813,0.23,43080.0,43079.0,0.4971788]
[1642209490718,0.23,43080.0,43079.0,0.333939]
[1642209492850,0.23,43080.0,43079.0,0.62188736]
[1642209495495,0.23,43080.0,43079.0,0.333939]
[1642209496898,0.23,43080.0,43079.0,0.61011693]
[1642209501055,0.23,43080.0,43079.0,0.333939]
[1642209502057,0.23,43080.0,43079.0,0.60895385]
[1642209502257,0.00126038,43091.0,43080.0,0.75]
[1642209502455,0.00126038,43091.0,43084.0,0.052217]
[1642209502656,0.74010266,43093.0,43084.0,0.052217]
[1642209502911,0.376122,43092.0,43084.0,0.052217]
[1642209503109,0.25913471,43091.0,43088.0,0.28764975]
[1642209503308,0.376122,43090.0,43088.0,0.28764975]
[1642209503807,0.25913471,43091.0,43088.0,0.28764975]
[1642209504408,0.25913471,43091.0,43088.0,0.33986875]
[1642209504707,0.176,43093.0,43088.0,0.33986875]
[1642209505107,0.076,43093.0,43088.0,0.33986875]
[1642209506008,0.05,43093.0,43088.0,0.33986875]
[1642209506551,0.2922715,43094.0,43088.0,0.33986875]
[1642209506851,0.05,43094.0,43088.0,0.33986875]
[1642209507052,0.07722307,43095.0,43088.0,0.33986875]
[1642209507252,0.02722307,43095.0,43088.0,0.33986875]
[1642209507853,0.31327598,43094.0,43088.0,0.33986875]
[1642209508157,0.41327598,43094.0,43088.0,0.33986875]
[1642209508353,0.46327598,43094.0,43088.0,0.33986875]
[1642209508853,0.72027598,43094.0,43088.0,0.33986875]
[1642209509553,0.49027598,43094.0,43088.0,0.33986875]
[1642209510057,0.46327598,43094.0,43088.0,0.33986875]
[1642209510305,0.376122,43093.0,43088.0,0.33986875]
[1642209511903,0.376122,43093.0,43088.0,0.33486875]
[1642209512107,0.00122307,43095.0,43088.0,0.33486875]
[1642209512306,0.59010266,43096.0,43088.0,0.33486875]
[1642209512905,0.33023004,43097.0,43088.0,0.33486875]
[1642209513309,0.031,43097.0,43088.0,0.33486875]
[1642209514061,0.86538611,43098.0,43088.0,0.33486875]
[1642209514260,0.86538611,43098.0,43088.0,0.6146502]
[1642209514862,0.88038611,43098.0,43088.0,0.6146502]
[1642209516063,0.5792,43098.0,43088.0,0.6146502]
[1642209516760,0.5942,43098.0,43088.0,0.6146502]
[1642209517162,1.18430266,43098.0,43088.0,0.6146502]
[1642209517562,0.5942,43098.0,43088.0,0.6146502]
[1642209518003,0.376122,43097.0,43088.0,0.6146502]
[1642209518404,0.5792,43098.0,43088.0,0.6146502]
[1642209518803,0.5942,43098.0,43088.0,0.6146502]
[1642209519004,0.376122,43097.0,43088.0,0.6146502]
[1642209519605,0.6042,43098.0,43088.0,0.6146502]
[1642209520107,0.6392,43098.0,43088.0,0.6146502]
[1642209520505,0.6392,43098.0,43088.0,0.6726632]